[Event "Titled Tuesday Blitz May 2 Late 2023"]
[White "Jarmula, Lukasz"]
[Black "Tsotsonava, Elene"]
[WhiteFideId "1160664"]
[BlackFideId "13615939"]
[WhiteElo "2372"]
[BlackElo "1829"]
[Result "0-1"]
[Round "06"]
[TimeControl "180+2"]
[Date "2023.05.02"]
[WhiteClock "0:00:09"]
[BlackClock "0:01:05"]

1. a4 {[%clk 0:03:00]}  c5 {[%clk 0:02:57]} 2. Nf3 {[%clk 0:02:56]}  d5 {[%clk 0:02:56]} 3. e3 {[%clk 0:02:54]}  Nc6 {[%clk 0:02:55]} 4. Bb5 {[%clk 0:02:53]}  Bd7 {[%clk 0:02:55]} 5. O-O {[%clk 0:02:52]}  Nf6 {[%clk 0:02:52]} 6. b3 {[%clk 0:02:51]}  e6 {[%clk 0:02:49]} 7. Bb2 {[%clk 0:02:51]}  Bd6 {[%clk 0:02:49]} 8. d3 {[%clk 0:02:43]}  Qc7 {[%clk 0:02:48]} 9. c4 {[%clk 0:02:36]}  a6 {[%clk 0:02:48]} 10. Bxc6 {[%clk 0:02:34]}  Bxc6 {[%clk 0:02:49]} 11. Nc3 {[%clk 0:02:26]}  dxc4 {[%clk 0:02:48]} 12. bxc4 {[%clk 0:02:24]}  Bxf3 {[%clk 0:02:46]} 13. Qxf3 {[%clk 0:02:24]}  Bxh2+ {[%clk 0:02:47]} 14. Kh1 {[%clk 0:02:24]}  Be5 {[%clk 0:02:48]} 15. Rab1 {[%clk 0:02:15]}  O-O {[%clk 0:02:47]} 16. Ba1 {[%clk 0:02:07]}  Rab8 {[%clk 0:02:43]} 17. g3 {[%clk 0:02:02]}  Rfd8 {[%clk 0:02:43]} 18. Rfd1 {[%clk 0:02:00]}  h5 {[%clk 0:02:34]} 19. Kg2 {[%clk 0:01:57]}  g6 {[%clk 0:02:31]} 20. Rb3 {[%clk 0:01:41]}  Ng4 {[%clk 0:02:28]} 21. Rdb1 {[%clk 0:01:34]}  b6 {[%clk 0:02:26]} 22. Ne4 {[%clk 0:01:32]}  Bxa1 {[%clk 0:02:24]} 23. Rxa1 {[%clk 0:01:32]}  Kg7 {[%clk 0:02:10]} 24. Rab1 {[%clk 0:01:31]}  Qc6 {[%clk 0:02:01]} 25. Ng5 {[%clk 0:01:14]}  Qc7 {[%clk 0:01:30]} 26. a5 {[%clk 0:01:13]}  Ne5 {[%clk 0:01:29]} 27. Qf4 {[%clk 0:00:58]}  bxa5 {[%clk 0:01:27]} 28. Rxb8 {[%clk 0:00:34]}  Rxb8 {[%clk 0:01:28]} 29. Rxb8 {[%clk 0:00:34]}  Qxb8 {[%clk 0:01:29]} 30. Nxf7 {[%clk 0:00:33]}  Qb7+ {[%clk 0:01:28]} 31. e4 {[%clk 0:00:25]}  Nxf7 {[%clk 0:01:27]} 32. Qd2 {[%clk 0:00:23]}  Qb4 {[%clk 0:01:25]} 33. Qf4 {[%clk 0:00:20]}  e5 {[%clk 0:01:25]} 34. Qh4 {[%clk 0:00:17]}  Qb8 {[%clk 0:01:23]} 35. Qe7 {[%clk 0:00:16]}  Qd6 {[%clk 0:01:22]} 36. Qa7 {[%clk 0:00:16]}  a4 {[%clk 0:01:22]} 37. f4 {[%clk 0:00:14]}  a3 {[%clk 0:01:21]} 38. Qb7 {[%clk 0:00:14]}  Qxd3 {[%clk 0:01:18]} 39. fxe5 {[%clk 0:00:14]}  a2 {[%clk 0:01:12]} 40. Qb2 {[%clk 0:00:12]}  Qb1 {[%clk 0:01:09]} 41. Qf2 {[%clk 0:00:09]}  a1=Q {[%clk 0:01:08]} 42. Qf6+ {[%clk 0:00:09]}  Kg8 {[%clk 0:01:07]} 43. Qxg6+ {[%clk 0:00:09]}  Kf8 {[%clk 0:01:06]} 44. e6 {[%clk 0:00:09]}  Qf1+ {[%clk 0:01:05]} 45. Kh2 {[%clk 0:00:09]}  Qh1# {[%clk 0:01:05]} 0-1


[Site "https://www.chess.com"]

[Event "Titled Tuesday Blitz May 2 Late 2023"]
[White "Srdanovic, Jovana"]
[Black "Kanakaris, Georgios"]
[WhiteFideId "954810"]
[BlackFideId "4209460"]
[WhiteElo "2145"]
[BlackElo "2291"]
[Result "0-1"]
[Round "06"]
[TimeControl "180+2"]
[Date "2023.05.02"]
[WhiteClock "0:00:01"]
[BlackClock "0:00:41"]

1. e4 {[%clk 0:02:59]}  e6 {[%clk 0:02:59]} 2. d4 {[%clk 0:02:59]}  d5 {[%clk 0:02:59]} 3. Nc3 {[%clk 0:02:59]}  Bb4 {[%clk 0:02:51]} 4. e5 {[%clk 0:02:57]}  Qd7 {[%clk 0:02:46]} 5. a3 {[%clk 0:02:51]}  Bxc3+ {[%clk 0:02:45]} 6. bxc3 {[%clk 0:02:52]}  b6 {[%clk 0:02:45]} 7. Qg4 {[%clk 0:02:50]}  f5 {[%clk 0:02:45]} 8. Qg3 {[%clk 0:02:47]}  Bb7 {[%clk 0:02:41]} 9. h4 {[%clk 0:02:31]}  Nc6 {[%clk 0:02:41]} 10. Nh3 {[%clk 0:02:27]}  Na5 {[%clk 0:02:39]} 11. Nf4 {[%clk 0:02:21]}  O-O-O {[%clk 0:02:34]} 12. a4 {[%clk 0:02:18]}  Nh6 {[%clk 0:02:21]} 13. Bd3 {[%clk 0:02:15]}  Nc4 {[%clk 0:02:13]} 14. O-O {[%clk 0:02:10]}  a5 {[%clk 0:02:12]} 15. Qg5 {[%clk 0:01:16]}  Rhg8 {[%clk 0:02:05]} 16. Qh5 {[%clk 0:01:06]}  Kb8 {[%clk 0:01:52]} 17. Qf3 {[%clk 0:01:03]}  Ng4 {[%clk 0:01:43]} 18. Nxe6 {[%clk 0:00:56]}  Ngxe5 {[%clk 0:01:32]} 19. Qxf5 {[%clk 0:00:46]}  Nxd3 {[%clk 0:01:30]} 20. cxd3 {[%clk 0:00:45]}  Rde8 {[%clk 0:01:26]} 21. dxc4 {[%clk 0:00:43]}  Rxe6 {[%clk 0:01:22]} 22. c5 {[%clk 0:00:39]}  Ba6 {[%clk 0:01:18]} 23. cxb6 {[%clk 0:00:22]}  Bxf1 {[%clk 0:01:17]} 24. bxc7+ {[%clk 0:00:21]}  Ka8 {[%clk 0:01:00]} 25. Bf4 {[%clk 0:00:17]}  Ba6 {[%clk 0:00:59]} 26. Qxh7 {[%clk 0:00:14]}  Rge8 {[%clk 0:00:52]} 27. Kh2 {[%clk 0:00:13]}  Re1 {[%clk 0:00:49]} 28. Ra2 {[%clk 0:00:12]}  Qg4 {[%clk 0:00:45]} 29. Bg3 {[%clk 0:00:07]}  Qd1 {[%clk 0:00:43]} 30. Kh3 {[%clk 0:00:01]}  Bc8+ {[%clk 0:00:41]} 0-1


[Site "https://www.chess.com"]

[Event "Titled Tuesday Blitz May 2 Late 2023"]
[White "Dovbnia, Nikita"]
[Black "Graif, William"]
[WhiteFideId "54104599"]
[BlackFideId "2609835"]
[WhiteElo "2076"]
[BlackElo "2205"]
[Result "0-1"]
[Round "06"]
[TimeControl "180+2"]
[Date "2023.05.02"]
[WhiteClock "0:00:17"]
[BlackClock "0:00:15"]

1. Nf3 {[%clk 0:02:59]}  d5 {[%clk 0:02:53]} 2. b3 {[%clk 0:03:00]}  Nf6 {[%clk 0:02:47]} 3. Bb2 {[%clk 0:03:00]}  e6 {[%clk 0:02:44]} 4. e3 {[%clk 0:03:01]}  b6 {[%clk 0:02:44]} 5. c4 {[%clk 0:03:00]}  Bb7 {[%clk 0:02:45]} 6. Nc3 {[%clk 0:03:00]}  Nbd7 {[%clk 0:02:44]} 7. cxd5 {[%clk 0:03:00]}  exd5 {[%clk 0:02:44]} 8. Rc1 {[%clk 0:02:59]}  a6 {[%clk 0:02:42]} 9. Bd3 {[%clk 0:02:58]}  Bd6 {[%clk 0:02:41]} 10. Ne2 {[%clk 0:02:54]}  O-O {[%clk 0:02:21]} 11. Ng3 {[%clk 0:02:54]}  Re8 {[%clk 0:02:18]} 12. O-O {[%clk 0:02:52]}  g6 {[%clk 0:02:07]} 13. Bb1 {[%clk 0:02:39]}  Ng4 {[%clk 0:01:55]} 14. Qc2 {[%clk 0:02:29]}  Nde5 {[%clk 0:01:39]} 15. Qc3 {[%clk 0:02:20]}  Nxf3+ {[%clk 0:01:22]} 16. gxf3 {[%clk 0:02:19]}  Ne5 {[%clk 0:01:20]} 17. f4 {[%clk 0:02:11]}  d4 {[%clk 0:01:20]} 18. exd4 {[%clk 0:01:59]}  Nf3+ {[%clk 0:01:16]} 19. Kg2 {[%clk 0:01:59]}  Qh4 {[%clk 0:00:59]} 20. d5 {[%clk 0:01:54]}  Be5 {[%clk 0:00:36]} 21. Qxf3 {[%clk 0:01:47]}  Bxb2 {[%clk 0:00:32]} 22. Rxc7 {[%clk 0:01:47]}  Re7 {[%clk 0:00:27]} 23. Rxe7 {[%clk 0:01:36]}  Qxe7 {[%clk 0:00:28]} 24. Be4 {[%clk 0:01:35]}  f5 {[%clk 0:00:28]} 25. Bd3 {[%clk 0:01:33]}  Qd6 {[%clk 0:00:27]} 26. Kg1 {[%clk 0:01:03]}  Re8 {[%clk 0:00:27]} 27. Rb1 {[%clk 0:00:58]}  Bxd5 {[%clk 0:00:26]} 28. Bc4 {[%clk 0:00:53]}  Bxc4 {[%clk 0:00:25]} 29. bxc4 {[%clk 0:00:53]}  Qxd2 {[%clk 0:00:25]} 30. Qd5+ {[%clk 0:00:51]}  Qxd5 {[%clk 0:00:25]} 31. cxd5 {[%clk 0:00:52]}  Bd4 {[%clk 0:00:25]} 32. Rd1 {[%clk 0:00:49]}  Bc5 {[%clk 0:00:24]} 33. Kg2 {[%clk 0:00:41]}  Kf7 {[%clk 0:00:23]} 34. Kf3 {[%clk 0:00:40]}  h5 {[%clk 0:00:21]} 35. Nf1 {[%clk 0:00:38]}  Re4 {[%clk 0:00:21]} 36. Ne3 {[%clk 0:00:38]}  Ke7 {[%clk 0:00:18]} 37. Rg1 {[%clk 0:00:29]}  Kf7 {[%clk 0:00:18]} 38. Rd1 {[%clk 0:00:29]}  Bd6 {[%clk 0:00:17]} 39. Rc1 {[%clk 0:00:28]}  Rxf4+ {[%clk 0:00:17]} 40. Ke2 {[%clk 0:00:27]}  Ra4 {[%clk 0:00:18]} 41. Rc6 {[%clk 0:00:27]}  Rxa2+ {[%clk 0:00:18]} 42. Kd3 {[%clk 0:00:26]}  Bc5 {[%clk 0:00:19]} 43. d6 {[%clk 0:00:22]}  Ke6 {[%clk 0:00:19]} 44. Nc4 {[%clk 0:00:19]}  Rxf2 {[%clk 0:00:17]} 45. Nxb6 {[%clk 0:00:18]}  Bxb6 {[%clk 0:00:17]} 46. Rxb6 {[%clk 0:00:18]}  Rxh2 {[%clk 0:00:16]} 47. Rxa6 {[%clk 0:00:19]}  Kd7 {[%clk 0:00:16]} 48. Ke3 {[%clk 0:00:19]}  g5 {[%clk 0:00:14]} 49. Ra5 {[%clk 0:00:19]}  Rh3+ {[%clk 0:00:12]} 50. Kf2 {[%clk 0:00:17]}  Kxd6 {[%clk 0:00:12]} 51. Rxf5 {[%clk 0:00:17]}  g4 {[%clk 0:00:12]} 52. Kg2 {[%clk 0:00:16]}  Ke6 {[%clk 0:00:13]} 53. Ra5 {[%clk 0:00:16]}  Kf6 {[%clk 0:00:13]} 54. Rb5 {[%clk 0:00:16]}  Kg6 {[%clk 0:00:13]} 55. Ra5 {[%clk 0:00:16]}  Rb3 {[%clk 0:00:14]} 56. Rb5 {[%clk 0:00:17]}  Rxb5 {[%clk 0:00:14]} 57. Kg3 {[%clk 0:00:17]}  Kg5 {[%clk 0:00:14]} 58. Kg2 {[%clk 0:00:17]}  Rb3 {[%clk 0:00:15]} 0-1


[Site "https://www.chess.com"]

[Event "Titled Tuesday Blitz May 2 Late 2023"]
[White "Kim, Sergey"]
[Black "Flynn, Jacob"]
[WhiteFideId "13700570"]
[BlackFideId "2509393"]
[WhiteElo "2295"]
[BlackElo "2053"]
[Result "1-0"]
[Round "06"]
[TimeControl "180+2"]
[Date "2023.05.02"]
[WhiteClock "0:01:16"]
[BlackClock "0:00:11"]

1. d4 {[%clk 0:03:00]}  Nf6 {[%clk 0:02:53]} 2. c4 {[%clk 0:03:00]}  e6 {[%clk 0:02:53]} 3. Nc3 {[%clk 0:03:01]}  Bb4 {[%clk 0:02:53]} 4. Qc2 {[%clk 0:03:01]}  O-O {[%clk 0:02:53]} 5. a3 {[%clk 0:03:01]}  Bxc3+ {[%clk 0:02:54]} 6. Qxc3 {[%clk 0:03:02]}  d5 {[%clk 0:02:55]} 7. Nf3 {[%clk 0:03:02]}  dxc4 {[%clk 0:02:55]} 8. Qxc4 {[%clk 0:03:02]}  b6 {[%clk 0:02:56]} 9. g3 {[%clk 0:03:03]}  Bb7 {[%clk 0:02:46]} 10. Bg2 {[%clk 0:03:02]}  Nbd7 {[%clk 0:02:46]} 11. O-O {[%clk 0:03:01]}  c5 {[%clk 0:02:47]} 12. Rd1 {[%clk 0:02:58]}  Rc8 {[%clk 0:02:41]} 13. dxc5 {[%clk 0:02:54]}  Rxc5 {[%clk 0:02:26]} 14. Qh4 {[%clk 0:02:54]}  Rh5 {[%clk 0:02:18]} 15. Qa4 {[%clk 0:02:44]}  Qa8 {[%clk 0:02:14]} 16. Bf4 {[%clk 0:02:34]}  e5 {[%clk 0:01:58]} 17. Be3 {[%clk 0:02:30]}  Bc6 {[%clk 0:01:55]} 18. Qb3 {[%clk 0:02:24]}  Ng4 {[%clk 0:01:44]} 19. Rac1 {[%clk 0:02:21]}  Ndf6 {[%clk 0:01:13]} 20. h3 {[%clk 0:02:16]}  Nxe3 {[%clk 0:01:10]} 21. Qxe3 {[%clk 0:02:15]}  e4 {[%clk 0:00:55]} 22. Nd4 {[%clk 0:02:10]}  Bb7 {[%clk 0:00:56]} 23. g4 {[%clk 0:02:07]}  Re5 {[%clk 0:00:55]} 24. Nf5 {[%clk 0:02:06]}  h6 {[%clk 0:00:45]} 25. Qf4 {[%clk 0:01:57]}  Re6 {[%clk 0:00:45]} 26. Nd6 {[%clk 0:01:53]}  Bd5 {[%clk 0:00:41]} 27. Nf5 {[%clk 0:01:46]}  Rfe8 {[%clk 0:00:34]} 28. e3 {[%clk 0:01:41]}  Nd7 {[%clk 0:00:26]} 29. Nd6 {[%clk 0:01:33]}  Rf6 {[%clk 0:00:26]} 30. Qg3 {[%clk 0:01:33]}  Rd8 {[%clk 0:00:16]} 31. Nb5 {[%clk 0:01:32]}  Nc5 {[%clk 0:00:15]} 32. Nc7 {[%clk 0:01:29]}  Qb7 {[%clk 0:00:15]} 33. Nxd5 {[%clk 0:01:29]}  Rxd5 {[%clk 0:00:15]} 34. Rxd5 {[%clk 0:01:25]}  Qxd5 {[%clk 0:00:16]} 35. Qb8+ {[%clk 0:01:21]}  Kh7 {[%clk 0:00:16]} 36. Qxa7 {[%clk 0:01:21]}  Qd2 {[%clk 0:00:14]} 37. Rf1 {[%clk 0:01:21]}  g6 {[%clk 0:00:15]} 38. Qe7 {[%clk 0:01:18]}  Qd5 {[%clk 0:00:11]} 39. Qxf6 {[%clk 0:01:16]} 1-0


[Site "https://www.chess.com"]

[Event "Titled Tuesday Blitz May 2 Late 2023"]
[White "Pourkashiyan, Atousa"]
[Black "Ezat, Mohamed"]
[WhiteFideId "12502014"]
[BlackFideId "10600906"]
[WhiteElo "2228"]
[BlackElo "2386"]
[Result "1-0"]
[Round "06"]
[TimeControl "180+2"]
[Date "2023.05.02"]
[WhiteClock "0:00:15"]
[BlackClock "0:00:13"]

1. e4 {[%clk 0:02:33]}  c6 {[%clk 0:02:59]} 2. d4 {[%clk 0:02:32]}  d5 {[%clk 0:02:59]} 3. Nd2 {[%clk 0:02:32]}  Qc7 {[%clk 0:02:58]} 4. Ngf3 {[%clk 0:02:29]}  Bg4 {[%clk 0:02:57]} 5. e5 {[%clk 0:02:27]}  e6 {[%clk 0:02:56]} 6. Bd3 {[%clk 0:02:25]}  c5 {[%clk 0:02:56]} 7. c3 {[%clk 0:02:25]}  Nc6 {[%clk 0:02:55]} 8. O-O {[%clk 0:02:23]}  Nge7 {[%clk 0:02:54]} 9. h3 {[%clk 0:02:22]}  Bh5 {[%clk 0:02:53]} 10. dxc5 {[%clk 0:02:13]}  Bg6 {[%clk 0:02:49]} 11. Nb3 {[%clk 0:02:09]}  Nxe5 {[%clk 0:02:45]} 12. Nxe5 {[%clk 0:01:59]}  Qxe5 {[%clk 0:02:44]} 13. Bb5+ {[%clk 0:01:58]}  Nc6 {[%clk 0:02:44]} 14. Nd4 {[%clk 0:01:59]}  Qc7 {[%clk 0:02:43]} 15. Qa4 {[%clk 0:01:53]}  Rc8 {[%clk 0:02:42]} 16. b4 {[%clk 0:01:14]}  a5 {[%clk 0:02:19]} 17. Re1 {[%clk 0:01:03]}  Be7 {[%clk 0:02:17]} 18. Be3 {[%clk 0:00:32]}  O-O {[%clk 0:02:16]} 19. Bxc6 {[%clk 0:00:31]}  bxc6 {[%clk 0:02:15]} 20. Qxa5 {[%clk 0:00:32]}  Qxa5 {[%clk 0:02:10]} 21. bxa5 {[%clk 0:00:32]}  e5 {[%clk 0:01:45]} 22. Nf3 {[%clk 0:00:30]}  f6 {[%clk 0:01:44]} 23. Rab1 {[%clk 0:00:29]}  Ra8 {[%clk 0:01:42]} 24. Rb7 {[%clk 0:00:27]}  Bd8 {[%clk 0:01:38]} 25. Reb1 {[%clk 0:00:21]}  Bxa5 {[%clk 0:01:38]} 26. Rc1 {[%clk 0:00:20]}  Rfb8 {[%clk 0:01:32]} 27. Rd7 {[%clk 0:00:18]}  Rb2 {[%clk 0:01:28]} 28. Nh4 {[%clk 0:00:18]}  Be8 {[%clk 0:01:23]} 29. Rd6 {[%clk 0:00:18]}  Bc7 {[%clk 0:01:20]} 30. Re6 {[%clk 0:00:17]}  Kf8 {[%clk 0:01:13]} 31. Nf5 {[%clk 0:00:16]}  Bd7 {[%clk 0:01:12]} 32. Re7 {[%clk 0:00:16]}  Rd8 {[%clk 0:01:08]} 33. Rxg7 {[%clk 0:00:17]}  Ba5 {[%clk 0:01:02]} 34. Bh6 {[%clk 0:00:16]}  Bxf5 {[%clk 0:00:56]} 35. Rb7+ {[%clk 0:00:16]}  Kg8 {[%clk 0:00:54]} 36. Rxb2 {[%clk 0:00:17]}  Kf7 {[%clk 0:00:46]} 37. Rb7+ {[%clk 0:00:17]}  Kg6 {[%clk 0:00:46]} 38. Be3 {[%clk 0:00:17]}  Ra8 {[%clk 0:00:43]} 39. g4 {[%clk 0:00:17]}  Be4 {[%clk 0:00:42]} 40. h4 {[%clk 0:00:18]}  h5 {[%clk 0:00:42]} 41. gxh5+ {[%clk 0:00:17]}  Kxh5 {[%clk 0:00:42]} 42. Rg7 {[%clk 0:00:16]}  Rb8 {[%clk 0:00:31]} 43. Kh2 {[%clk 0:00:15]}  Rb2 {[%clk 0:00:25]} 44. Rg8 {[%clk 0:00:16]}  d4 {[%clk 0:00:15]} 45. Rcg1 {[%clk 0:00:15]}  Rb7 {[%clk 0:00:11]} 46. Rh8+ {[%clk 0:00:14]}  Bh7 {[%clk 0:00:10]} 47. cxd4 {[%clk 0:00:14]}  exd4 {[%clk 0:00:10]} 48. Bxd4 {[%clk 0:00:15]}  Bc7+ {[%clk 0:00:11]} 49. Kh1 {[%clk 0:00:14]}  Bf4 {[%clk 0:00:08]} 50. Bxf6 {[%clk 0:00:13]}  Bh6 {[%clk 0:00:06]} 51. f3 {[%clk 0:00:12]}  Rf7 {[%clk 0:00:03]} 52. Bg5 {[%clk 0:00:12]}  Bg7 {[%clk 0:00:03]} 53. Rxh7+ {[%clk 0:00:12]}  Kg6 {[%clk 0:00:04]} 54. Rxg7+ {[%clk 0:00:12]}  Kxg7 {[%clk 0:00:05]} 55. Be3+ {[%clk 0:00:11]}  Kh7 {[%clk 0:00:06]} 56. Rg3 {[%clk 0:00:12]}  Rf5 {[%clk 0:00:06]} 57. Kg2 {[%clk 0:00:11]}  Re5 {[%clk 0:00:07]} 58. Kf2 {[%clk 0:00:12]}  Rd5 {[%clk 0:00:07]} 59. Rg4 {[%clk 0:00:12]}  Rd7 {[%clk 0:00:08]} 60. h5 {[%clk 0:00:12]}  Rb7 {[%clk 0:00:09]} 61. h6 {[%clk 0:00:13]}  Ra7 {[%clk 0:00:10]} 62. Kg3 {[%clk 0:00:13]}  Rxa2 {[%clk 0:00:11]} 63. Rg7+ {[%clk 0:00:13]}  Kh8 {[%clk 0:00:11]} 64. Re7 {[%clk 0:00:14]}  Rg2+ {[%clk 0:00:11]} 65. Kxg2 {[%clk 0:00:13]}  Kg8 {[%clk 0:00:11]} 66. Bd4 {[%clk 0:00:14]}  Kf8 {[%clk 0:00:11]} 67. Ra7 {[%clk 0:00:14]}  Kg8 {[%clk 0:00:12]} 68. h7+ {[%clk 0:00:14]}  Kf8 {[%clk 0:00:13]} 69. h8=Q# {[%clk 0:00:15]} 1-0


[Site "https://www.chess.com"]

[Event "Titled Tuesday Blitz May 2 Late 2023"]
[White "Vaglio Munoz, Jaime"]
[Black "Ballester Llagaria, Luis Eduardo"]
[WhiteFideId "6500145"]
[BlackFideId "2297620"]
[WhiteElo "2199"]
[BlackElo "2344"]
[Result "0-1"]
[Round "06"]
[TimeControl "180+2"]
[Date "2023.05.02"]
[WhiteClock "0:00:18"]
[BlackClock "0:00:12"]

1. Nf3 {[%clk 0:03:00]}  d5 {[%clk 0:02:56]} 2. c4 {[%clk 0:02:58]}  dxc4 {[%clk 0:02:57]} 3. Qa4+ {[%clk 0:02:56]}  Nc6 {[%clk 0:02:54]} 4. Ne5 {[%clk 0:02:54]}  Qd5 {[%clk 0:02:47]} 5. Nxc6 {[%clk 0:02:52]}  Qxc6 {[%clk 0:02:17]} 6. Qxc6+ {[%clk 0:02:51]}  bxc6 {[%clk 0:02:18]} 7. e3 {[%clk 0:02:50]}  e5 {[%clk 0:02:13]} 8. Bxc4 {[%clk 0:02:49]}  Nf6 {[%clk 0:02:13]} 9. Nc3 {[%clk 0:02:48]}  Bd6 {[%clk 0:02:13]} 10. d3 {[%clk 0:02:44]}  Ke7 {[%clk 0:02:13]} 11. Ke2 {[%clk 0:02:42]}  Rb8 {[%clk 0:02:11]} 12. b3 {[%clk 0:02:41]}  Be6 {[%clk 0:02:11]} 13. h3 {[%clk 0:02:34]}  Nd5 {[%clk 0:02:09]} 14. Bd2 {[%clk 0:02:32]}  Nxc3+ {[%clk 0:01:45]} 15. Bxc3 {[%clk 0:02:31]}  Bxc4 {[%clk 0:01:46]} 16. dxc4 {[%clk 0:02:31]}  f6 {[%clk 0:01:46]} 17. e4 {[%clk 0:02:30]}  Bc5 {[%clk 0:01:46]} 18. Rhd1 {[%clk 0:02:29]}  Rhd8 {[%clk 0:01:47]} 19. Rxd8 {[%clk 0:02:27]}  Rxd8 {[%clk 0:01:47]} 20. a3 {[%clk 0:02:26]}  Ke6 {[%clk 0:01:44]} 21. b4 {[%clk 0:02:25]}  Bd4 {[%clk 0:01:44]} 22. Rd1 {[%clk 0:02:24]}  g5 {[%clk 0:01:32]} 23. g3 {[%clk 0:02:23]}  h5 {[%clk 0:01:30]} 24. f4 {[%clk 0:02:21]}  gxf4 {[%clk 0:01:27]} 25. gxf4 {[%clk 0:02:22]}  Rg8 {[%clk 0:01:19]} 26. Bxd4 {[%clk 0:02:17]}  exd4 {[%clk 0:01:20]} 27. Kf3 {[%clk 0:02:10]}  h4 {[%clk 0:01:19]} 28. Rd3 {[%clk 0:01:55]}  f5 {[%clk 0:01:11]} 29. e5 {[%clk 0:01:45]}  Rg3+ {[%clk 0:01:04]} 30. Ke2 {[%clk 0:01:45]}  Rg2+ {[%clk 0:01:04]} 31. Kd1 {[%clk 0:01:39]}  Rf2 {[%clk 0:00:58]} 32. Rxd4 {[%clk 0:01:38]}  Rf3 {[%clk 0:00:58]} 33. a4 {[%clk 0:01:31]}  Rxh3 {[%clk 0:00:57]} 34. Ke2 {[%clk 0:01:31]}  Rb3 {[%clk 0:00:48]} 35. b5 {[%clk 0:01:30]}  h3 {[%clk 0:00:39]} 36. Kf2 {[%clk 0:01:29]}  Rb2+ {[%clk 0:00:38]} 37. Kg1 {[%clk 0:01:28]}  Ra2 {[%clk 0:00:28]} 38. c5 {[%clk 0:01:27]}  Rc2 {[%clk 0:00:24]} 39. b6 {[%clk 0:01:03]}  cxb6 {[%clk 0:00:23]} 40. cxb6 {[%clk 0:01:04]}  axb6 {[%clk 0:00:23]} 41. Rb4 {[%clk 0:01:05]}  Kd5 {[%clk 0:00:18]} 42. Rxb6 {[%clk 0:01:02]}  Rc4 {[%clk 0:00:18]} 43. e6 {[%clk 0:01:00]}  Kxe6 {[%clk 0:00:17]} 44. a5 {[%clk 0:00:59]}  Kd6 {[%clk 0:00:14]} 45. a6 {[%clk 0:00:58]}  Rxf4 {[%clk 0:00:13]} 46. Kh2 {[%clk 0:00:55]}  Rf3 {[%clk 0:00:11]} 47. Rb7 {[%clk 0:00:54]}  Ra3 {[%clk 0:00:11]} 48. a7 {[%clk 0:00:54]}  c5 {[%clk 0:00:09]} 49. Rf7 {[%clk 0:00:53]}  c4 {[%clk 0:00:08]} 50. Rxf5 {[%clk 0:00:21]}  Rxa7 {[%clk 0:00:07]} 51. Kxh3 {[%clk 0:00:20]}  Rg7 {[%clk 0:00:08]} 52. Ra5 {[%clk 0:00:19]}  Kc6 {[%clk 0:00:07]} 53. Kh2 {[%clk 0:00:18]}  Rg6 {[%clk 0:00:06]} 54. Kh3 {[%clk 0:00:17]}  Rg8 {[%clk 0:00:06]} 55. Kh2 {[%clk 0:00:17]}  Kb6 {[%clk 0:00:06]} 56. Ra4 {[%clk 0:00:16]}  Kb5 {[%clk 0:00:05]} 57. Ra7 {[%clk 0:00:16]}  Kb4 {[%clk 0:00:05]} 58. Rb7+ {[%clk 0:00:16]}  Kc3 {[%clk 0:00:05]} 59. Rc7 {[%clk 0:00:14]}  Kd3 {[%clk 0:00:06]} 60. Rd7+ {[%clk 0:00:14]}  Kc2 {[%clk 0:00:06]} 61. Kh3 {[%clk 0:00:14]}  c3 {[%clk 0:00:07]} 62. Kh2 {[%clk 0:00:14]}  Kb2 {[%clk 0:00:07]} 63. Rd5 {[%clk 0:00:15]}  c2 {[%clk 0:00:07]} 64. Rb5+ {[%clk 0:00:15]}  Kc1 {[%clk 0:00:08]} 65. Rd5 {[%clk 0:00:15]}  Rb8 {[%clk 0:00:08]} 66. Rf5 {[%clk 0:00:14]}  Kb1 {[%clk 0:00:08]} 67. Kg3 {[%clk 0:00:13]}  c1=Q {[%clk 0:00:08]} 68. Kg4 {[%clk 0:00:14]}  Qg1+ {[%clk 0:00:08]} 69. Kf4 {[%clk 0:00:13]}  Rb4+ {[%clk 0:00:07]} 70. Ke5 {[%clk 0:00:14]}  Rb5+ {[%clk 0:00:08]} 71. Ke4 {[%clk 0:00:14]}  Qe1+ {[%clk 0:00:07]} 72. Kd4 {[%clk 0:00:14]}  Rxf5 {[%clk 0:00:07]} 73. Kc4 {[%clk 0:00:14]}  Rf2 {[%clk 0:00:08]} 74. Kb3 {[%clk 0:00:13]}  Qg1 {[%clk 0:00:09]} 75. Kc3 {[%clk 0:00:13]}  Qg3+ {[%clk 0:00:09]} 76. Kd4 {[%clk 0:00:14]}  Rf4+ {[%clk 0:00:10]} 77. Ke5 {[%clk 0:00:15]}  Qg5+ {[%clk 0:00:10]} 78. Ke6 {[%clk 0:00:16]}  Rf6+ {[%clk 0:00:11]} 79. Ke7 {[%clk 0:00:17]}  Qg7+ {[%clk 0:00:12]} 80. Kd8 {[%clk 0:00:18]}  Rf8# {[%clk 0:00:12]} 0-1


[Site "https://www.chess.com"]

[Event "Titled Tuesday Blitz May 2 Late 2023"]
[White "Lopez Del Alamo, Antonio"]
[Black "Perske, Thore"]
[WhiteFideId "2227339"]
[BlackFideId "12902195"]
[WhiteElo "2175"]
[BlackElo "2336"]
[Result "1-0"]
[Round "06"]
[TimeControl "180+2"]
[Date "2023.05.02"]
[WhiteClock "0:00:41"]
[BlackClock "0:00:05"]

1. e4 {[%clk 0:02:59]}  e6 {[%clk 0:03:00]} 2. d3 {[%clk 0:02:58]}  d5 {[%clk 0:03:00]} 3. Nd2 {[%clk 0:02:58]}  Nf6 {[%clk 0:02:59]} 4. Ngf3 {[%clk 0:02:58]}  c5 {[%clk 0:02:59]} 5. g3 {[%clk 0:02:58]}  Nc6 {[%clk 0:03:00]} 6. Bg2 {[%clk 0:02:59]}  Be7 {[%clk 0:03:00]} 7. O-O {[%clk 0:02:59]}  O-O {[%clk 0:03:01]} 8. e5 {[%clk 0:02:59]}  Nd7 {[%clk 0:03:01]} 9. Re1 {[%clk 0:03:00]}  b5 {[%clk 0:03:01]} 10. Nf1 {[%clk 0:03:00]}  a5 {[%clk 0:03:02]} 11. h4 {[%clk 0:02:56]}  b4 {[%clk 0:03:02]} 12. Bf4 {[%clk 0:02:56]}  a4 {[%clk 0:03:02]} 13. a3 {[%clk 0:02:56]}  bxa3 {[%clk 0:03:03]} 14. bxa3 {[%clk 0:02:56]}  Rb8 {[%clk 0:03:04]} 15. N1h2 {[%clk 0:02:55]}  Ba6 {[%clk 0:03:02]} 16. Ng5 {[%clk 0:02:52]}  c4 {[%clk 0:03:01]} 17. Bf1 {[%clk 0:02:48]}  cxd3 {[%clk 0:02:53]} 18. cxd3 {[%clk 0:02:41]}  Rb3 {[%clk 0:02:53]} 19. Qh5 {[%clk 0:02:33]}  Bxg5 {[%clk 0:02:43]} 20. hxg5 {[%clk 0:02:34]}  Nd4 {[%clk 0:02:37]} 21. Ng4 {[%clk 0:02:26]}  Nf5 {[%clk 0:01:55]} 22. Rad1 {[%clk 0:02:01]}  Qe7 {[%clk 0:01:31]} 23. Bh3 {[%clk 0:01:47]}  Rfb8 {[%clk 0:01:16]} 24. Nf6+ {[%clk 0:01:43]}  gxf6 {[%clk 0:01:03]} 25. Bxf5 {[%clk 0:01:35]}  exf5 {[%clk 0:00:56]} 26. exf6 {[%clk 0:01:33]}  Qf8 {[%clk 0:00:52]} 27. Bxb8 {[%clk 0:01:26]}  Nxb8 {[%clk 0:00:37]} 28. Rc1 {[%clk 0:00:54]}  Bxd3 {[%clk 0:00:32]} 29. Re8 {[%clk 0:00:44]}  Qxe8 {[%clk 0:00:23]} 30. Qh6 {[%clk 0:00:44]}  Qf8 {[%clk 0:00:20]} 31. Rc8 {[%clk 0:00:44]}  Rb1+ {[%clk 0:00:09]} 32. Kh2 {[%clk 0:00:43]}  Be4 {[%clk 0:00:05]} 33. Qg7# {[%clk 0:00:41]} 1-0


[Site "https://www.chess.com"]